[Event "*** Titled Tuesday Blitz"]
[Site "Chess.com"]
[Date "2021.04.06"]
[Round "2"]
[White "Chamal_Gedgafov"]
[Black "ajdemipopushi"]
[Result "0-1"]
[WhiteElo "2199"]
[BlackElo "2432"]
[TimeControl "180+1"]
[EndTime "10:19:29 PDT"]
[Termination "ajdemipopushi won on time"]

1. d4 {[%clk 0:03:00.9]} 1... Nf6 {[%clk 0:02:59.3]} 2. c4 {[%clk 0:02:57.6]}
2... c5 {[%clk 0:02:59.4]} 3. d5 {[%clk 0:02:57.4]} 3... b5 {[%clk 0:02:59.6]}
4. cxb5 {[%clk 0:02:55.9]} 4... a6 {[%clk 0:02:59.9]} 5. e3 {[%clk 0:02:56.8]}
5... e6 {[%clk 0:02:53.3]} 6. Nc3 {[%clk 0:02:54.4]} 6... exd5 {[%clk
0:02:52.9]} 7. Nxd5 {[%clk 0:02:52.7]} 7... Bb7 {[%clk 0:02:53.1]} 8. Nxf6+
{[%clk 0:02:41.9]} 8... Qxf6 {[%clk 0:02:52.8]} 9. Nf3 {[%clk 0:02:42.8]} 9...
Be7 {[%clk 0:02:47.7]} 10. Be2 {[%clk 0:02:36.3]} 10... O-O {[%clk 0:02:46.2]}
11. O-O {[%clk 0:02:35.6]} 11... axb5 {[%clk 0:02:45]} 12. Bxb5 {[%clk
0:02:34.7]} 12... d5 {[%clk 0:02:44.5]} 13. a4 {[%clk 0:02:03.4]} 13... Rd8
{[%clk 0:02:43.4]} 14. Ra3 {[%clk 0:01:38.5]} 14... Nc6 {[%clk 0:02:33.7]} 15.
Rd3 {[%clk 0:01:22.9]} 15... Nb4 {[%clk 0:02:19.6]} 16. Rd2 {[%clk 0:01:21.1]}
16... Bd6 {[%clk 0:01:25.6]} 17. b3 {[%clk 0:01:09.5]} 17... Qh6 {[%clk
0:01:19]} 18. h3 {[%clk 0:01:04]} 18... Qg6 {[%clk 0:01:11]} 19. Bb2 {[%clk
0:00:57.9]} 19... Rac8 {[%clk 0:00:39.4]} 20. Ne5 {[%clk 0:00:50.3]} 20... Bxe5
{[%clk 0:00:24.3]} 21. Bxe5 {[%clk 0:00:48.7]} 21... d4 {[%clk 0:00:24]} 22. f3
{[%clk 0:00:40.1]} 22... f6 {[%clk 0:00:19.7]} 23. Bf4 {[%clk 0:00:33.2]} 23...
d3 {[%clk 0:00:18.7]} 24. e4 {[%clk 0:00:32.1]} 24... Kh8 {[%clk 0:00:15.4]} 25.
Be3 {[%clk 0:00:28.7]} 25... f5 {[%clk 0:00:12.5]} 26. exf5 {[%clk 0:00:27.3]}
26... Qxf5 {[%clk 0:00:12.3]} 27. Bf2 {[%clk 0:00:23]} 27... Qg6 {[%clk
0:00:06.1]} 28. Kh1 {[%clk 0:00:21.6]} 28... Ba6 {[%clk 0:00:06]} 29. Qc1 {[%clk
0:00:19.6]} 29... Bxb5 {[%clk 0:00:05.7]} 30. axb5 {[%clk 0:00:20]} 30... Qb6
{[%clk 0:00:04.6]} 31. Qc4 {[%clk 0:00:18.6]} 31... Qd6 {[%clk 0:00:03.5]} 32.
Rc1 {[%clk 0:00:17.7]} 32... Nc2 {[%clk 0:00:03.2]} 33. Rcxc2 {[%clk 0:00:12.3]}
33... dxc2 {[%clk 0:00:03.2]} 34. Rxd6 {[%clk 0:00:11]} 34... Rxd6 {[%clk
0:00:03.6]} 35. Qxc2 {[%clk 0:00:10.7]} 35... Rcd8 {[%clk 0:00:04]} 36. Bxc5
{[%clk 0:00:07.5]} 36... Rd2 {[%clk 0:00:03.8]} 37. Qc4 {[%clk 0:00:06.7]} 37...
Rd1+ {[%clk 0:00:03.6]} 38. Kh2 {[%clk 0:00:06.9]} 38... Rc8 {[%clk 0:00:04.1]}
39. b6 {[%clk 0:00:06.5]} 39... Rd7 {[%clk 0:00:03.4]} 40. b4 {[%clk 0:00:06.3]}
40... Rb7 {[%clk 0:00:03.7]} 41. Qd5 {[%clk 0:00:06.1]} 41... Rcb8 {[%clk
0:00:03.6]} 42. Qc6 {[%clk 0:00:05.9]} 42... Rf7 {[%clk 0:00:03.1]} 43. h4
{[%clk 0:00:06]} 43... h6 {[%clk 0:00:03.2]} 44. h5 {[%clk 0:00:06.1]} 44...
Rbf8 {[%clk 0:00:03.3]} 45. Qd5 {[%clk 0:00:05]} 45... Rf5 {[%clk 0:00:02.8]}
46. Qd6 {[%clk 0:00:03.4]} 46... Rxh5+ {[%clk 0:00:02.5]} 47. Kg1 {[%clk
0:00:03]} 47... Re8 {[%clk 0:00:03]} 48. Bd4 {[%clk 0:00:01.6]} 48... Re1+
{[%clk 0:00:02.9]} 49. Kf2 {[%clk 0:00:01]} 49... Rd1 {[%clk 0:00:02.8]} 50.
Qd8+ {[%clk 0:00:01]} 50... Kh7 {[%clk 0:00:02.9]} 51. Qd7 {[%clk 0:00:01.1]}
51... Rg5 {[%clk 0:00:03]} 0-1

[Event "*** Titled Tuesday Blitz"]
[Site "Chess.com"]
[Date "2021.04.06"]
[Round "2"]
[White "Rytenko_V"]
[Black "Larciano"]
[Result "1-0"]
[WhiteElo "2373"]
[BlackElo "1987"]
[TimeControl "180+1"]
[EndTime "10:19:30 PDT"]
[Termination "Rytenko_V won on time"]

1. d4 {[%clk 0:03:00.9]} 1... d5 {[%clk 0:02:59.7]} 2. c4 {[%clk 0:03:01.1]}
2... Nc6 {[%clk 0:02:59.8]} 3. Nc3 {[%clk 0:03:02]} 3... dxc4 {[%clk 0:02:59.4]}
4. Nf3 {[%clk 0:03:02.1]} 4... Nf6 {[%clk 0:02:51.4]} 5. Bg5 {[%clk 0:02:57.9]}
5... Bg4 {[%clk 0:02:47.7]} 6. e3 {[%clk 0:02:57.6]} 6... h6 {[%clk 0:02:42.5]}
7. Bh4 {[%clk 0:02:53.4]} 7... e6 {[%clk 0:02:42.5]} 8. Bxc4 {[%clk 0:02:51.2]}
8... Bd6 {[%clk 0:02:41.3]} 9. Qb3 {[%clk 0:02:42.7]} 9... Rb8 {[%clk 0:02:36]}
10. Bb5 {[%clk 0:02:34.1]} 10... O-O {[%clk 0:02:34.7]} 11. h3 {[%clk
0:02:29.6]} 11... Bxf3 {[%clk 0:02:26.8]} 12. gxf3 {[%clk 0:02:30.5]} 12... e5
{[%clk 0:02:14.3]} 13. d5 {[%clk 0:02:16.6]} 13... Na5 {[%clk 0:02:12.3]} 14.
Qa4 {[%clk 0:02:07.3]} 14... c6 {[%clk 0:02:12.4]} 15. Bd3 {[%clk 0:02:05.4]}
15... Be7 {[%clk 0:01:50.8]} 16. e4 {[%clk 0:01:31.7]} 16... b5 {[%clk
0:01:43.7]} 17. Qc2 {[%clk 0:01:26.7]} 17... b4 {[%clk 0:01:37.4]} 18. Ne2
{[%clk 0:01:14]} 18... cxd5 {[%clk 0:01:34]} 19. Ng3 {[%clk 0:01:07.9]} 19...
Rc8 {[%clk 0:01:08]} 20. Qe2 {[%clk 0:01:01.4]} 20... dxe4 {[%clk 0:01:06.8]}
21. fxe4 {[%clk 0:00:56.6]} 21... Nc6 {[%clk 0:00:51.9]} 22. Nf5 {[%clk
0:00:41.3]} 22... Nd4 {[%clk 0:00:50.8]} 23. Qe3 {[%clk 0:00:37.5]} 23... Nxf5
{[%clk 0:00:49.8]} 24. exf5 {[%clk 0:00:37]} 24... Qd4 {[%clk 0:00:45.3]} 25.
Qxd4 {[%clk 0:00:28.8]} 25... exd4 {[%clk 0:00:45.4]} 26. Kd2 {[%clk 0:00:27]}
26... Bd6 {[%clk 0:00:43.4]} 27. Bxf6 {[%clk 0:00:11.9]} 27... gxf6 {[%clk
0:00:43.3]} 28. Rhg1+ {[%clk 0:00:11.5]} 28... Kh7 {[%clk 0:00:39.1]} 29. Rg4
{[%clk 0:00:12.4]} 29... Rg8 {[%clk 0:00:38.3]} 30. Rag1 {[%clk 0:00:12.1]}
30... Be5 {[%clk 0:00:34.6]} 31. Bc2 {[%clk 0:00:05.4]} 31... a5 {[%clk
0:00:31.1]} 32. Bb3 {[%clk 0:00:05.7]} 32... Rxg4 {[%clk 0:00:29.5]} 33. Rxg4
{[%clk 0:00:03.4]} 33... Rc7 {[%clk 0:00:27.8]} 34. Kd3 {[%clk 0:00:03.7]} 34...
Rc1 {[%clk 0:00:25.1]} 35. h4 {[%clk 0:00:02.8]} 35... Rf1 {[%clk 0:00:24.2]}
36. Rg2 {[%clk 0:00:03]} 36... Rh1 {[%clk 0:00:24]} 37. f4 {[%clk 0:00:02.2]}
37... Bxf4 {[%clk 0:00:23.5]} 38. Kxd4 {[%clk 0:00:02.7]} 38... Be5+ {[%clk
0:00:24.2]} 39. Kd5 {[%clk 0:00:02.7]} 39... Rxh4 {[%clk 0:00:24.2]} 40. Kc6
{[%clk 0:00:02.1]} 40... Rf4 {[%clk 0:00:20.9]} 41. Bxf7 {[%clk 0:00:02.3]}
41... a4 {[%clk 0:00:16.3]} 42. Bg8+ {[%clk 0:00:02.6]} 42... Kh8 {[%clk
0:00:15.7]} 43. Be6 {[%clk 0:00:03.5]} 43... h5 {[%clk 0:00:11.6]} 44. Kd7
{[%clk 0:00:03.5]} 44... Rd4+ {[%clk 0:00:10.4]} 45. Ke8 {[%clk 0:00:03.3]}
45... Rd6 {[%clk 0:00:07.9]} 46. Kf7 {[%clk 0:00:03.4]} 46... Rd8 {[%clk
0:00:07.3]} 47. Ke7 {[%clk 0:00:02.8]} 47... Rb8 {[%clk 0:00:04.2]} 48. Rg1
{[%clk 0:00:03]} 48... b3 {[%clk 0:00:04.1]} 49. axb3 {[%clk 0:00:02.7]} 49...
axb3 {[%clk 0:00:04.5]} 50. Rh1 {[%clk 0:00:03.6]} 50... Kg7 {[%clk 0:00:03.6]}
51. Rg1+ {[%clk 0:00:02.3]} 51... Kh6 {[%clk 0:00:03.3]} 52. Rg6+ {[%clk
0:00:02.1]} 52... Kh7 {[%clk 0:00:03.6]} 53. Rg1 {[%clk 0:00:02]} 53... Kh6
{[%clk 0:00:03.8]} 54. Bd7 {[%clk 0:00:02.9]} 54... Bxb2 {[%clk 0:00:03.6]} 55.
Rg6+ {[%clk 0:00:03.4]} 55... Kh7 {[%clk 0:00:03.4]} 56. Kf7 {[%clk 0:00:04]}
1-0

[Event "*** Titled Tuesday Blitz"]
[Site "Chess.com"]
[Date "2021.04.06"]
[Round "2"]
[White "GMaka"]
[Black "Fandorine"]
[Result "0-1"]
[WhiteElo "2465"]
[BlackElo "2896"]
[TimeControl "180+1"]
[EndTime "10:19:31 PDT"]
[Termination "Fandorine won on time"]

1. d4 {[%clk 0:03:00.9]} 1... Nf6 {[%clk 0:02:59.3]} 2. Bg5 {[%clk 0:03:00.6]}
2... g6 {[%clk 0:02:59]} 3. e3 {[%clk 0:02:59.3]} 3... Bg7 {[%clk 0:02:59.1]} 4.
Bd3 {[%clk 0:02:58.2]} 4... d5 {[%clk 0:02:57.5]} 5. Nf3 {[%clk 0:02:54.2]} 5...
O-O {[%clk 0:02:57.9]} 6. Nbd2 {[%clk 0:02:53.1]} 6... c5 {[%clk 0:02:56.7]} 7.
c3 {[%clk 0:02:53]} 7... Qb6 {[%clk 0:02:54.1]} 8. Qb1 {[%clk 0:02:47.5]} 8...
Nc6 {[%clk 0:02:47.2]} 9. O-O {[%clk 0:02:45.6]} 9... Re8 {[%clk 0:02:43.7]} 10.
a4 {[%clk 0:02:37.9]} 10... c4 {[%clk 0:02:32.2]} 11. Bc2 {[%clk 0:02:35.5]}
11... e5 {[%clk 0:02:32.5]} 12. Nxe5 {[%clk 0:02:13.4]} 12... Nxe5 {[%clk
0:02:31.7]} 13. dxe5 {[%clk 0:02:14.3]} 13... Rxe5 {[%clk 0:02:20.7]} 14. Nf3
{[%clk 0:02:13.3]} 14... Re8 {[%clk 0:02:20.6]} 15. a5 {[%clk 0:02:13.1]} 15...
Qc5 {[%clk 0:02:13.7]} 16. Nd4 {[%clk 0:02:02.5]} 16... Ne4 {[%clk 0:02:10.8]}
17. Bf4 {[%clk 0:01:56.5]} 17... Nd2 {[%clk 0:02:08.4]} 18. Qa2 {[%clk
0:01:57.1]} 18... Nxf1 {[%clk 0:02:07.5]} 19. Rxf1 {[%clk 0:01:58]} 19... Bd7
{[%clk 0:02:07.8]} 20. h3 {[%clk 0:01:50.5]} 20... b5 {[%clk 0:02:06.6]} 21. a6
{[%clk 0:01:38.9]} 21... Be5 {[%clk 0:01:57.5]} 22. Bxe5 {[%clk 0:01:36.5]}
22... Rxe5 {[%clk 0:01:58.4]} 23. Qa5 {[%clk 0:01:34.4]} 23... Rb8 {[%clk
0:01:56.7]} 24. b4 {[%clk 0:01:28.8]} 24... Qb6 {[%clk 0:01:53.8]} 25. Ra1
{[%clk 0:01:23.9]} 25... Qxa5 {[%clk 0:01:50.8]} 26. Rxa5 {[%clk 0:01:24.8]}
26... Kf8 {[%clk 0:01:49.3]} 27. Bd1 {[%clk 0:01:24.7]} 27... h5 {[%clk
0:01:48.2]} 28. Bf3 {[%clk 0:01:19.2]} 28... Rb6 {[%clk 0:01:48.3]} 29. Kh2
{[%clk 0:01:01.5]} 29... Ke7 {[%clk 0:01:46.5]} 30. g4 {[%clk 0:01:01.9]} 30...
h4 {[%clk 0:01:42.3]} 31. Kg2 {[%clk 0:00:55.2]} 31... Kd6 {[%clk 0:01:42.3]}
32. Kf1 {[%clk 0:00:55.4]} 32... g5 {[%clk 0:01:40.1]} 33. Ke2 {[%clk
0:00:53.3]} 33... f6 {[%clk 0:01:34.8]} 34. Bg2 {[%clk 0:00:49.7]} 34... Re8
{[%clk 0:01:34.6]} 35. Kd2 {[%clk 0:00:49.6]} 35... Reb8 {[%clk 0:01:33.3]} 36.
e4 {[%clk 0:00:42.6]} 36... dxe4 {[%clk 0:01:28.7]} 37. Bxe4 {[%clk 0:00:43.5]}
37... Re8 {[%clk 0:01:27.7]} 38. f3 {[%clk 0:00:31.9]} 38... Re5 {[%clk
0:01:26.9]} 39. Bb7 {[%clk 0:00:26]} 39... f5 {[%clk 0:01:15.2]} 40. Ra1 {[%clk
0:00:25.7]} 40... f4 {[%clk 0:01:11.8]} 41. Be4 {[%clk 0:00:22.7]} 41... Bc8
{[%clk 0:01:12]} 42. Ra5 {[%clk 0:00:20.4]} 42... Bxa6 {[%clk 0:00:44.2]} 43.
Nf5+ {[%clk 0:00:19.9]} 43... Kc7 {[%clk 0:00:42.5]} 44. Nd4 {[%clk 0:00:20.3]}
44... Rd6 {[%clk 0:00:34.3]} 45. Kc2 {[%clk 0:00:17.9]} 45... Kb6 {[%clk
0:00:32.6]} 46. Ra1 {[%clk 0:00:17.5]} 46... Bb7 {[%clk 0:00:26.7]} 47. Bxb7
{[%clk 0:00:16.6]} 47... Kxb7 {[%clk 0:00:27.6]} 48. Rd1 {[%clk 0:00:16.2]}
48... a6 {[%clk 0:00:23.8]} 49. Rd2 {[%clk 0:00:17.1]} 49... Re3 {[%clk
0:00:22.8]} 50. Kb2 {[%clk 0:00:16.6]} 50... Rd5 {[%clk 0:00:20.8]} 51. Rc2
{[%clk 0:00:14.6]} 51... Rxd4 {[%clk 0:00:18.8]} 52. cxd4 {[%clk 0:00:15.5]}
52... Rb3+ {[%clk 0:00:18.8]} 53. Kc1 {[%clk 0:00:14.8]} 53... Rxb4 {[%clk
0:00:19]} 54. Re2 {[%clk 0:00:15.2]} 54... Rb3 {[%clk 0:00:19.5]} 55. Re5 {[%clk
0:00:14]} 55... Rxf3 {[%clk 0:00:19.6]} 56. Rxg5 {[%clk 0:00:14.7]} 56... Rxh3
{[%clk 0:00:20]} 57. Rf5 {[%clk 0:00:15.2]} 57... f3 {[%clk 0:00:17.5]} 58. g5
{[%clk 0:00:16.1]} 58... Rg3 {[%clk 0:00:17.8]} 59. d5 {[%clk 0:00:07.3]} 59...
h3 {[%clk 0:00:17.9]} 0-1

[Event "*** Titled Tuesday Blitz"]
[Site "Chess.com"]
[Date "2021.04.06"]
[Round "2"]
[White "GMJustin"]
[Black "YumiBear"]
[Result "0-1"]
[WhiteElo "2291"]
[BlackElo "2543"]
[TimeControl "180+1"]
[EndTime "10:19:34 PDT"]
[Termination "YumiBear won on time"]

1. e4 {[%clk 0:02:55.4]} 1... c6 {[%clk 0:02:58.3]} 2. d4 {[%clk 0:02:54.3]}
2... d5 {[%clk 0:02:58.9]} 3. Bd3 {[%clk 0:02:53.7]} 3... dxe4 {[%clk
0:02:58.3]} 4. Bxe4 {[%clk 0:02:54.6]} 4... Nf6 {[%clk 0:02:58.6]} 5. Bf3 {[%clk
0:02:55]} 5... Bf5 {[%clk 0:02:58.2]} 6. Ne2 {[%clk 0:02:54.3]} 6... h6 {[%clk
0:02:58.5]} 7. O-O {[%clk 0:02:53.7]} 7... e6 {[%clk 0:02:58.9]} 8. c4 {[%clk
0:02:49.5]} 8... Bd6 {[%clk 0:02:58.2]} 9. Nbc3 {[%clk 0:02:48]} 9... O-O {[%clk
0:02:58.2]} 10. Bf4 {[%clk 0:02:36.9]} 10... Qc7 {[%clk 0:02:45.2]} 11. Bxd6
{[%clk 0:02:22.1]} 11... Qxd6 {[%clk 0:02:44.3]} 12. Qb3 {[%clk 0:02:22.7]}
12... Qc7 {[%clk 0:02:21.9]} 13. Rac1 {[%clk 0:02:11.2]} 13... Nbd7 {[%clk
0:02:20.6]} 14. Rfd1 {[%clk 0:02:02.3]} 14... e5 {[%clk 0:02:07.9]} 15. Ng3
{[%clk 0:01:47.4]} 15... Bg6 {[%clk 0:01:56.8]} 16. d5 {[%clk 0:01:36.7]} 16...
Rfe8 {[%clk 0:01:45.1]} 17. d6 {[%clk 0:01:16.2]} 17... Qb6 {[%clk 0:01:28.7]}
18. Nce4 {[%clk 0:01:14]} 18... Nxe4 {[%clk 0:01:25.5]} 19. Bxe4 {[%clk
0:01:13.7]} 19... Nc5 {[%clk 0:00:58.9]} 20. Qxb6 {[%clk 0:01:09]} 20... axb6
{[%clk 0:00:59.8]} 21. Bxg6 {[%clk 0:01:08.6]} 21... fxg6 {[%clk 0:01:00.2]} 22.
b4 {[%clk 0:01:03.9]} 22... Ne6 {[%clk 0:00:56.4]} 23. Rd2 {[%clk 0:00:54.9]}
23... Nf8 {[%clk 0:00:39.3]} 24. Ne4 {[%clk 0:00:47.9]} 24... Ra4 {[%clk
0:00:37.9]} 25. Rb1 {[%clk 0:00:38]} 25... Nd7 {[%clk 0:00:37.7]} 26. h4 {[%clk
0:00:24.1]} 26... Rea8 {[%clk 0:00:37.1]} 27. Nc3 {[%clk 0:00:23.8]} 27... Ra3
{[%clk 0:00:36.4]} 28. Rb3 {[%clk 0:00:15.1]} 28... Kf7 {[%clk 0:00:35.1]} 29.
Rxa3 {[%clk 0:00:05.9]} 29... Rxa3 {[%clk 0:00:34.8]} 30. Ne4 {[%clk 0:00:06.4]}
30... Ke6 {[%clk 0:00:31.8]} 31. c5 {[%clk 0:00:06.5]} 31... b5 {[%clk
0:00:27.6]} 32. f3 {[%clk 0:00:06.3]} 32... Ra4 {[%clk 0:00:20.4]} 33. Rb2
{[%clk 0:00:06]} 33... Ra3 {[%clk 0:00:20.9]} 34. Kf2 {[%clk 0:00:05.7]} 34...
Rd3 {[%clk 0:00:20.6]} 35. Ke2 {[%clk 0:00:05.6]} 35... Rd4 {[%clk 0:00:15.5]}
36. a3 {[%clk 0:00:05.8]} 36... Kd5 {[%clk 0:00:14]} 37. Rd2 {[%clk 0:00:04.5]}
37... Kc4 {[%clk 0:00:12.5]} 38. Rxd4+ {[%clk 0:00:04.4]} 38... exd4 {[%clk
0:00:11.5]} 39. Kd2 {[%clk 0:00:04.9]} 39... Kb3 {[%clk 0:00:07.7]} 40. Kd3
{[%clk 0:00:04.9]} 40... Kxa3 {[%clk 0:00:08.2]} 41. Kxd4 {[%clk 0:00:04.3]}
41... Kxb4 {[%clk 0:00:08.6]} 42. g4 {[%clk 0:00:04.3]} 42... Ka3 {[%clk
0:00:08.4]} 43. f4 {[%clk 0:00:03.9]} 43... b4 {[%clk 0:00:08.7]} 44. f5 {[%clk
0:00:02.5]} 44... gxf5 {[%clk 0:00:07.3]} 45. gxf5 {[%clk 0:00:02.3]} 45... b3
{[%clk 0:00:07.7]} 46. Kc3 {[%clk 0:00:02.5]} 46... b2 {[%clk 0:00:07.9]} 47.
Nd2 {[%clk 0:00:02.3]} 47... Ka2 {[%clk 0:00:05.2]} 48. Kc2 {[%clk 0:00:02.6]}
48... Nxc5 {[%clk 0:00:05.6]} 49. h5 {[%clk 0:00:02.8]} 49... b5 {[%clk
0:00:05.4]} 50. Nb1 {[%clk 0:00:02.6]} 50... b4 {[%clk 0:00:05.5]} 51. Nd2
{[%clk 0:00:02.4]} 51... b3+ {[%clk 0:00:06]} 52. Kc3 {[%clk 0:00:02.2]} 52...
b1=Q {[%clk 0:00:06.5]} 53. Nxb1 {[%clk 0:00:02.3]} 53... Kxb1 {[%clk
0:00:07.4]} 54. d7 {[%clk 0:00:02.2]} 54... Nxd7 {[%clk 0:00:07.3]} 55. Kxb3
{[%clk 0:00:02.9]} 55... c5 {[%clk 0:00:07.5]} 56. Kc4 {[%clk 0:00:03]} 56...
Kb2 {[%clk 0:00:07.9]} 57. Kd5 {[%clk 0:00:03.2]} 57... Kb3 {[%clk 0:00:08.4]}
58. Ke6 {[%clk 0:00:03.4]} 58... Nf6 {[%clk 0:00:07.3]} 59. Kf7 {[%clk
0:00:03.8]} 59... Nxh5 {[%clk 0:00:07.6]} 60. Kg6 {[%clk 0:00:04.3]} 60... Ng3
{[%clk 0:00:07.5]} 0-1

[Event "*** Titled Tuesday Blitz"]
[Site "Chess.com"]
[Date "2021.04.06"]
[Round "2"]
[White "northridgehawk"]
[Black "Kretov_Evgenij"]
[Result "0-1"]
[WhiteElo "2317"]
[BlackElo "2618"]
[TimeControl "180+1"]
[EndTime "10:19:36 PDT"]
[Termination "Kretov_Evgenij won by resignation"]

1. e4 {[%clk 0:03:00.9]} 1... c5 {[%clk 0:02:59.5]} 2. Nf3 {[%clk 0:03:00]} 2...
Nc6 {[%clk 0:02:59.2]} 3. d4 {[%clk 0:03:00.5]} 3... cxd4 {[%clk 0:02:59.5]} 4.
Nxd4 {[%clk 0:03:01.4]} 4... g6 {[%clk 0:02:59.9]} 5. Be3 {[%clk 0:02:59.5]}
5... Nf6 {[%clk 0:02:59.4]} 6. Nc3 {[%clk 0:02:59.9]} 6... Bg7 {[%clk
0:02:59.2]} 7. Bc4 {[%clk 0:02:58.7]} 7... O-O {[%clk 0:02:59.2]} 8. Bb3 {[%clk
0:02:59.4]} 8... d6 {[%clk 0:02:59.5]} 9. f3 {[%clk 0:02:59.2]} 9... Bd7 {[%clk
0:02:59.9]} 10. Qd2 {[%clk 0:02:59.8]} 10... Nxd4 {[%clk 0:03:00.2]} 11. Bxd4
{[%clk 0:02:59.4]} 11... b5 {[%clk 0:03:00.9]} 12. O-O-O {[%clk 0:02:56.9]}
12... a5 {[%clk 0:03:00.6]} 13. Bd5 {[%clk 0:02:56.7]} 13... Rc8 {[%clk
0:02:55.5]} 14. a3 {[%clk 0:02:46]} 14... b4 {[%clk 0:02:53.7]} 15. axb4 {[%clk
0:02:45.5]} 15... axb4 {[%clk 0:02:53.7]} 16. Nb1 {[%clk 0:02:37.7]} 16... Ba4
{[%clk 0:02:20.8]} 17. b3 {[%clk 0:02:31.4]} 17... Nxd5 {[%clk 0:02:20]} 18.
Bxg7 {[%clk 0:02:28.6]} 18... Bxb3 {[%clk 0:02:14.8]} 19. Bxf8 {[%clk
0:02:25.9]} 19... Rxc2+ {[%clk 0:01:51]} 20. Qxc2 {[%clk 0:02:24.8]} 20... Bxc2
{[%clk 0:01:51.3]} 21. Rxd5 {[%clk 0:02:17.8]} 21... Qc7 {[%clk 0:01:41.2]} 22.
Rd2 {[%clk 0:02:00.5]} 22... Bxe4+ {[%clk 0:01:19.2]} 23. Kb2 {[%clk 0:01:42.9]}
23... Bxb1 {[%clk 0:01:14.9]} 24. Rc1 {[%clk 0:01:42.2]} 24... Qb7 {[%clk
0:00:47.4]} 25. Bh6 {[%clk 0:01:37.2]} 25... Bf5 {[%clk 0:00:45.3]} 26. Rd4
{[%clk 0:01:26.2]} 26... Be6 {[%clk 0:00:40.2]} 27. Bd2 {[%clk 0:01:08]} 27...
b3 {[%clk 0:00:36.7]} 28. Ra4 {[%clk 0:01:07.2]} 28... Qd5 {[%clk 0:00:30.6]}
29. Bc3 {[%clk 0:01:06.6]} 29... f6 {[%clk 0:00:30.6]} 30. Rd4 {[%clk
0:01:03.7]} 30... Qa8 {[%clk 0:00:28.4]} 31. Ra1 {[%clk 0:01:02.8]} 31... Qb7
{[%clk 0:00:27.1]} 32. Re1 {[%clk 0:01:02.8]} 32... Qa6 {[%clk 0:00:22.9]} 33.
Ra1 {[%clk 0:01:01.7]} 33... Qe2+ {[%clk 0:00:23]} 34. Rd2 {[%clk 0:01:02.1]}
34... Qc4 {[%clk 0:00:22.9]} 35. Re1 {[%clk 0:01:02]} 35... Kf7 {[%clk
0:00:22.4]} 36. Rde2 {[%clk 0:01:00.7]} 36... Qa4 {[%clk 0:00:22.3]} 37. Ra1
{[%clk 0:00:57.5]} 37... Qb5 {[%clk 0:00:21.8]} 38. Rae1 {[%clk 0:00:57.6]}
38... Qd3 {[%clk 0:00:21]} 39. Rd2 {[%clk 0:00:46.8]} 39... Qf5 {[%clk
0:00:21.1]} 40. Rde2 {[%clk 0:00:47.7]} 40... g5 {[%clk 0:00:18.4]} 41. Re4
{[%clk 0:00:43.2]} 41... Kg6 {[%clk 0:00:17.4]} 42. g4 {[%clk 0:00:40.5]} 42...
Qxf3 {[%clk 0:00:17.5]} 43. Rxe6 {[%clk 0:00:40.6]} 43... Qxg4 {[%clk
0:00:17.9]} 44. R1e2 {[%clk 0:00:40.9]} 44... Qc4 {[%clk 0:00:16.1]} 45. Rxe7
{[%clk 0:00:40.9]} 45... Qa4 {[%clk 0:00:16.3]} 46. Kb1 {[%clk 0:00:38.5]} 46...
Qc4 {[%clk 0:00:16]} 47. Kb2 {[%clk 0:00:38.1]} 47... Qa4 {[%clk 0:00:16.2]} 48.
Kb1 {[%clk 0:00:38.5]} 48... Qc4 {[%clk 0:00:16.6]} 49. Bb2 {[%clk 0:00:38.1]}
49... Qd3+ {[%clk 0:00:16.6]} 50. Kc1 {[%clk 0:00:36.4]} 50... Qc4+ {[%clk
0:00:16.9]} 51. Kd1 {[%clk 0:00:35.9]} 51... Qd3+ {[%clk 0:00:17.1]} 52. Ke1
{[%clk 0:00:35.9]} 52... Qb1+ {[%clk 0:00:17.4]} 53. Kf2 {[%clk 0:00:36.2]}
53... Qf5+ {[%clk 0:00:17.7]} 54. Ke1 {[%clk 0:00:36.6]} 54... Qb1+ {[%clk
0:00:17.7]} 55. Kf2 {[%clk 0:00:34.7]} 55... Qf5+ {[%clk 0:00:18.3]} 56. Kg1
{[%clk 0:00:35.4]} 56... Qg4+ {[%clk 0:00:18.2]} 57. Kf1 {[%clk 0:00:33.9]}
57... Qf3+ {[%clk 0:00:18.2]} 58. Ke1 {[%clk 0:00:32]} 58... Qh1+ {[%clk
0:00:18.4]} 59. Kd2 {[%clk 0:00:32.2]} 59... Qc6 {[%clk 0:00:18.1]} 60. R7e6
{[%clk 0:00:31.2]} 60... Qc2+ {[%clk 0:00:17.9]} 61. Ke3 {[%clk 0:00:31.1]}
61... Qc5+ {[%clk 0:00:17.9]} 62. Kf3 {[%clk 0:00:28.7]} 62... Qf5+ {[%clk
0:00:15.7]} 63. Kg2 {[%clk 0:00:29.3]} 63... Qg4+ {[%clk 0:00:15.8]} 64. Kf2
{[%clk 0:00:30]} 64... Qf4+ {[%clk 0:00:16]} 65. Ke1 {[%clk 0:00:30.6]} 65...
Qb4+ {[%clk 0:00:14.8]} 66. Kd1 {[%clk 0:00:28.9]} 66... Kh5 {[%clk 0:00:12.8]}
67. Rxf6 {[%clk 0:00:28.8]} 67... d5 {[%clk 0:00:12.6]} 68. Rf3 {[%clk
0:00:26.7]} 68... Qc4 {[%clk 0:00:11.6]} 69. Rd3 {[%clk 0:00:26.6]} 69... Qxd3+
{[%clk 0:00:11.3]} 70. Ke1 {[%clk 0:00:26.9]} 70... Qb1+ {[%clk 0:00:11.2]} 71.
Kf2 {[%clk 0:00:27.1]} 71... Qd3 {[%clk 0:00:11.5]} 72. Rc2 {[%clk 0:00:23.7]}
0-1